fUST/lending_fUST_20250603
["ID","MTS","AMOUNT","RATE_DAILY","PERIOD"]
[363944498,1748943035500,-488.19,0.00017534,2]
[363944499,1748943035510,-1027.29,0.00017534,2]
[363944500,1748943035519,-858.15,0.00017534,2]
[363944501,1748943035529,-921.1,0.00017534,2]
[363944502,1748943035538,-440.0,0.00017534,2]
[363944503,1748943035547,-440.0,0.00017534,2]
[363944504,1748943035557,-440.0,0.00017534,2]
[363944505,1748943035567,-440.0,0.00017534,2]
[363944506,1748943035577,-695.19,0.00017534,2]
[363944507,1748943035586,-477.86,0.00017534,2]
[363944508,1748943035595,-440.0,0.00017534,2]
[363944509,1748943035604,-440.0,0.00017534,2]
[363944510,1748943035612,-440.0,0.00017534,2]
[363944511,1748943035621,-440.0,0.00017534,2]
[363944512,1748943035630,-440.0,0.00017534,2]
[363944513,1748943035640,-390.0,0.00017534,2]
[363944514,1748943035650,-440.0,0.00017534,2]
[363944515,1748943035659,-473.61,0.00017534,2]
[363944516,1748943035674,-493.19,0.00017534,2]
[363944517,1748943035684,-440.0,0.00017534,2]
[363944518,1748943035695,-157.26392787,0.00017534,2]
[363944519,1748943035707,-440.0,0.00017534,2]
[363944520,1748943035717,-440.0,0.00017534,2]
[363944521,1748943035727,-440.0,0.00017534,2]
[363944522,1748943035740,-440.0,0.00017534,2]
[363944523,1748943035754,-519.18762381,0.00017593,2]
[363944524,1748943035765,-500.0,0.00017605,2]
[363944525,1748943035776,-500.0,0.00017605,2]
[363944526,1748943035785,-1000.0,0.00017706,2]
[363944527,1748943035795,-2068.31309627,0.00017708,2]
[363944528,1748943035806,-212.86879254,0.0001777,2]
[363944529,1748943035816,-160.0,0.0001777,2]
[363944530,1748943035826,-842.5625,0.0001777,2]
[363944531,1748943035836,-160.0,0.00017771,2]
[363944532,1748943035846,-160.0,0.00017771,2]
[363944533,1748943035856,-160.0,0.00017771,2]
[363944534,1748943035865,-423.63107087,0.00017771,2]
[363944535,1748943035875,-229.42821335,0.00017771,2]
[363944536,1748943035884,-12670.76136593,0.00017771,2]
[363944537,1748943035895,-440.0,0.00017807,2]
[363944538,1748943035904,-440.0,0.00017808,2]
[363944539,1748943035915,-410.0,0.00017808,2]
[363944540,1748943035924,-440.0,0.00017808,2]
[363944541,1748943035934,-440.0,0.00017808,2]
[363944542,1748943036055,-2828.5,0.00017808,2]
[363944543,1748943036066,-561.37,0.00017808,2]
[363944544,1748943036076,-489.13,0.00017808,2]
[363944545,1748943036085,-440.0,0.00017808,2]
[363944546,1748943036095,-849.11,0.00017808,2]
[363944547,1748943036105,-634.83,0.00017808,2]
[363944548,1748943036114,-488.19,0.00017808,2]
[363944549,1748943036124,-1027.29,0.00017808,2]
[363944550,1748943036135,-858.15,0.00017808,2]
[363944551,1748943036146,-921.1,0.00017808,2]
[363944552,1748943036156,-440.0,0.00017808,2]
[363944553,1748943036165,-440.0,0.00017808,2]
[363944554,1748943036175,-440.0,0.00017808,2]
[363944555,1748943036185,-440.0,0.00017808,2]
[363944556,1748943036197,-695.19,0.00017808,2]
[363944557,1748943036208,-477.86,0.00017808,2]
[363944558,1748943036219,-440.0,0.00017808,2]
[363944559,1748943036228,-440.0,0.00017808,2]
[363944560,1748943036238,-440.0,0.00017808,2]
[363944561,1748943036248,-440.0,0.00017808,2]
[363944562,1748943036261,-440.0,0.00017808,2]
[363944563,1748943036271,-440.0,0.00017808,2]
[363944564,1748943036280,-473.61,0.00017808,2]
[363944565,1748943036290,-493.19,0.00017808,2]
[363944566,1748943036300,-440.0,0.00017808,2]
[363944567,1748943036311,-418.28,0.00017808,2]
[363944568,1748943036321,-358.4,0.00017808,2]
[363944569,1748943036331,-440.0,0.00017808,2]
[363944570,1748943036342,-440.0,0.00017808,2]
[363944571,1748943036353,-1565.76036883,0.000179,2]
[363944572,1748943036365,-481.56516768,0.00017955,2]
[363944573,1748943036375,-500.0,0.00017955,2]
[363944574,1748943036385,-420.0,0.00017963,2]
[363944575,1748943036397,-509.51775153,0.00017985,2]
[363944576,1748943036408,-198.33,0.00018,2]
[363944577,1748943036417,-10063.67448965,0.00018,2]
[363944578,1748943036427,-160.0,0.00018055,3]
[363944579,1748943036437,-1000.0,0.00018077,7]
[363944580,1748943036446,-1000.0,0.00018077,7]
[363944581,1748943036456,-1000.0,0.00018077,2]
[363944582,1748943036465,-1000.0,0.00018077,2]
[363944583,1748943036475,-1000.0,0.00018077,7]
[363944584,1748943036484,-1000.0,0.00018077,7]
[363944585,1748943036493,-1000.0,0.00018077,2]
[363944586,1748943036503,-155.0,0.00018081,2]
[363944587,1748943036512,-547.82721483,0.00018081,2]
[363944588,1748943036522,-563.36431858,0.00018082,2]
[363944589,1748943036531,-400.0,0.00018082,2]
[363944590,1748943036539,-440.0,0.00018082,2]
[363944591,1748943036549,-2828.5,0.00018082,2]
[363944592,1748943036558,-561.37,0.00018082,2]
[363944593,1748943036568,-489.13,0.00018082,2]
[363944594,1748943036577,-440.0,0.00018082,2]
[363944595,1748943036587,-849.11,0.00018082,2]
[363944596,1748943036597,-634.83,0.00018082,2]
[363944597,1748943036606,-488.19,0.00018082,2]
[363944598,1748943036616,-1027.29,0.00018082,2]
[363944599,1748943036625,-858.15,0.00018082,2]
[363944600,1748943036635,-921.1,0.00018082,2]
[363944601,1748943036644,-440.0,0.00018082,2]
[363944602,1748943036654,-440.0,0.00018082,2]
[363944603,1748943036664,-440.0,0.00018082,2]
[363944604,1748943036677,-440.0,0.00018082,2]
[363944605,1748943036687,-695.19,0.00018082,2]
[363944606,1748943036696,-477.86,0.00018082,2]
[363944607,1748943036706,-440.0,0.00018082,2]
[363944608,1748943036719,-440.0,0.00018082,2]
[363944609,1748943036729,-440.0,0.00018082,2]
[363944610,1748943036739,-440.0,0.00018082,2]
[363944611,1748943036754,-440.0,0.00018082,2]
[363944612,1748943036764,-440.0,0.00018082,2]
[363944613,1748943036775,-473.61,0.00018082,2]
[363944614,1748943036785,-493.19,0.00018082,2]
[363944615,1748943036795,-440.0,0.00018082,2]
[363944616,1748943036806,-440.0,0.00018082,2]
[363944617,1748943036816,-440.0,0.00018082,2]
[363944618,1748943036826,-500.0,0.00018104,2]
[363944619,1748943036838,-1565.76036882,0.00018141,2]
[363944620,1748943036848,-1000.0,0.00018153,2]
[363944621,1748943036858,-688.27137293,0.00018153,2]
[363944622,1748943036868,-2068.31309627,0.00018256,2]
[363944623,1748943036878,-440.0,0.00018356,2]
[363944624,1748943036888,-2828.5,0.00018356,2]
[363944625,1748943036898,-561.37,0.00018356,2]
[363944626,1748943036907,-489.13,0.00018356,2]
[363944627,1748943036917,-440.0,0.00018356,2]
[363944628,1748943036926,-849.11,0.00018356,2]
[363944629,1748943036936,-634.83,0.00018356,2]
[363944630,1748943036952,-488.19,0.00018356,2]
[363944631,1748943036962,-1027.29,0.00018356,2]
[363944632,1748943036971,-858.15,0.00018356,2]
[363944633,1748943036980,-921.1,0.00018356,2]
[363944634,1748943036990,-440.0,0.00018356,2]
[363944635,1748943037000,-440.0,0.00018356,2]
[363944636,1748943037010,-440.0,0.00018356,2]
[363944637,1748943037020,-440.0,0.00018356,2]
[363944638,1748943037029,-695.19,0.00018356,2]
[363944639,1748943037039,-477.86,0.00018356,2]
[363944640,1748943037048,-440.0,0.00018356,2]
[363944641,1748943037058,-440.0,0.00018356,2]
[363944642,1748943037068,-440.0,0.00018356,2]
[363944643,1748943037078,-440.0,0.00018356,2]
[363944644,1748943037087,-440.0,0.00018356,2]
[363944645,1748943037097,-410.0,0.00018356,2]
[363944646,1748943037106,-473.61,0.00018356,2]
[363944647,1748943037117,-493.19,0.00018356,2]
[363944648,1748943037128,-410.0,0.00018356,2]
[363944649,1748943037138,-440.0,0.00018356,2]
[363944650,1748943037148,-440.0,0.00018356,2]
[363944651,1748943037157,-544.7114402,0.00018357,2]
[363944652,1748943037167,-1565.76036882,0.00018383,2]
[363944653,1748943037177,-1565.76036882,0.00018624,2]
[363944654,1748943037186,-440.0,0.0001863,2]
[363944655,1748943037196,-2828.5,0.0001863,2]
[363944656,1748943037205,-561.37,0.0001863,2]
[363944657,1748943037215,-489.13,0.0001863,2]
[363944658,1748943037224,-369.45,0.0001863,2]
[363944659,1748943037236,-849.11,0.0001863,2]
[363944660,1748943037245,-634.83,0.0001863,2]
[363944661,1748943037255,-488.19,0.0001863,2]
[363944662,1748943037264,-1027.29,0.0001863,2]
[363944663,1748943037274,-858.15,0.0001863,2]
[363944664,1748943037284,-921.1,0.0001863,2]
[363944665,1748943037293,-440.0,0.0001863,2]
[363944666,1748943037303,-507.52,0.0001863,2]
[363944667,1748943037313,-440.0,0.0001863,2]
[363944668,1748943037323,-440.0,0.0001863,2]
[363944669,1748943037332,-695.19,0.0001863,2]
[363944670,1748943037341,-477.86,0.0001863,2]
[363944671,1748943037350,-400.0,0.0001863,2]
[363944672,1748943037359,-370.0,0.0001863,2]
[363944673,1748943037368,-400.0,0.0001863,2]
[363944674,1748943037377,-440.0,0.0001863,2]
[363944675,1748943037390,-400.0,0.0001863,2]
[363944676,1748943037403,-473.61,0.0001863,2]
[363944677,1748943037412,-493.19,0.0001863,2]
[363944678,1748943037422,-440.0,0.0001863,2]
[363944679,1748943037432,-440.0,0.0001863,2]
[363944680,1748943037442,-516.1585272,0.00018701,2]
[363944681,1748943037451,-207.4,0.00018761,2]
[363944682,1748943037461,-535.81843021,0.00018761,2]
[363944683,1748943037470,-3784.4197749,0.00018761,2]
[363944684,1748943037480,-500.0,0.00018761,2]
[363944685,1748943037489,-388.58632072,0.00018761,2]
[363944686,1748943037499,-2068.31309627,0.00018804,2]
[363944687,1748943037508,-1565.76036882,0.00018866,2]
[363944688,1748943037518,-440.0,0.00018904,2]
[363944689,1748943037529,-2828.5,0.00018904,2]
[363944690,1748943037539,-561.37,0.00018904,2]
[363944691,1748943037548,-489.13,0.00018904,2]
[363944692,1748943037559,-849.11,0.00018904,2]
[363944694,1748943037569,-634.83,0.00018904,2]
[363944696,1748943037578,-488.19,0.00018904,2]
[363944697,1748943037588,-1027.29,0.00018904,2]
[363944698,1748943037598,-858.15,0.00018904,2]
[363944700,1748943037608,-921.1,0.00018904,2]
[363944702,1748943037619,-440.0,0.00018904,2]
[363944703,1748943037628,-440.0,0.00018904,2]
[363944704,1748943037638,-440.0,0.00018904,2]
[363944705,1748943037649,-695.19,0.00018904,2]
[363944706,1748943037658,-477.86,0.00018904,2]
[363944707,1748943037670,-440.0,0.00018904,2]
[363944708,1748943037681,-473.61,0.00018904,2]
[363944709,1748943037691,-493.19,0.00018904,2]
[363944710,1748943037700,-440.0,0.00018904,2]
[363944711,1748943037711,-440.0,0.00018904,2]
[363944712,1748943037721,-494.6438503,0.00019014,2]
[363944713,1748943037730,-598.0920188,0.00019014,2]
[363944714,1748943037740,-1565.76036882,0.00019107,2]
[363944715,1748943037750,-181.19807031,0.00019168,2]
[363944716,1748943037760,-440.0,0.00019178,2]
[363944717,1748943037771,-430.0,0.00019178,2]
[363944718,1748943037780,-440.0,0.00019178,2]
[363944719,1748943037790,-2828.5,0.00019178,2]
[363944721,1748943037799,-561.37,0.00019178,2]
[363944722,1748943037809,-489.13,0.00019178,2]
[363944723,1748943037819,-849.11,0.00019178,2]
[363944724,1748943037828,-634.83,0.00019178,2]
[363944725,1748943037838,-488.19,0.00019178,2]
[363944726,1748943037848,-1027.29,0.00019178,2]
[363944727,1748943037858,-858.15,0.00019178,2]
[363944728,1748943037867,-921.1,0.00019178,2]
[363944729,1748943037876,-440.0,0.00019178,2]
[363944730,1748943037886,-440.0,0.00019178,2]
[363944731,1748943037896,-440.0,0.00019178,2]
[363944732,1748943037907,-695.19,0.00019178,2]
[363944733,1748943037917,-477.86,0.00019178,2]
[363944734,1748943037926,-440.0,0.00019178,2]
[363944735,1748943037935,-473.61,0.00019178,2]
[363944737,1748943037945,-493.19,0.00019178,2]
[363944739,1748943037954,-350.26206632,0.00019178,2]
[363944741,1748943037964,-440.0,0.00019178,2]
[363944743,1748943037973,-151.0,0.00019178,2]
[363944745,1748943037983,-174.843733,0.00019178,2]
[363944747,1748943037993,-156.587,0.00019233,2]
[363944749,1748943038005,-162.380719,0.00019288,2]
[363944751,1748943038015,-168.3888056,0.00019343,2]
[363944753,1748943038026,-1565.76036882,0.00019348,2]
[363944755,1748943038035,-2068.31309627,0.00019352,2]
[363944757,1748943038046,-174.61919141,0.00019398,2]
[363944759,1748943038055,-440.0,0.00019452,2]
[363944761,1748943038065,-2828.5,0.00019452,2]
[363944763,1748943038074,-561.37,0.00019452,2]
[363944765,1748943038084,-489.13,0.00019452,2]
[363944767,1748943038094,-849.11,0.00019452,2]
[363944769,1748943038103,-634.83,0.00019452,2]
[363944771,1748943038112,-488.19,0.00019452,2]
[363944773,1748943038122,-1027.29,0.00019452,2]
[363944775,1748943038132,-858.15,0.00019452,2]
[363944777,1748943038142,-921.1,0.00019452,2]
[363944779,1748943038152,-440.0,0.00019452,2]
[363944781,1748943038161,-440.0,0.00019452,2]
[363944783,1748943038171,-440.0,0.00019452,2]
[363944785,1748943038181,-695.19,0.00019452,2]
[363944787,1748943038190,-477.86,0.00019452,2]
[363944789,1748943038200,-440.0,0.00019452,2]
[363944791,1748943038209,-473.61,0.00019452,2]
[363944793,1748943038219,-493.19,0.00019452,2]
[363944795,1748943038228,-440.0,0.00019452,2]
[363944797,1748943038238,-181.08010149,0.00019453,2]
[363944801,1748943038248,-429.84,0.00019496,2]
[363944805,1748943038258,-187.78006525,0.00019508,2]
[363944808,1748943038267,-194.72792766,0.00019563,2]
[363944811,1748943038277,-1565.76036882,0.0001959,2]
[363944814,1748943038286,-1303.979275,0.00019599,2]
[363944817,1748943038296,-201.93286099,0.00019618,2]
[363944820,1748943038305,-396.0,0.00019631,2]
[363944822,1748943038315,-209.40437684,0.00019673,2]
[363944825,1748943038325,-306.0,0.00019699,2]
[363944827,1748943038334,-153.0,0.00019699,2]
[363944829,1748943038344,-153.0,0.00019699,2]
[363944831,1748943038353,-6370.0,0.000197,2]
[363944833,1748943038362,-6370.0,0.000197,2]
[363944835,1748943038372,-6370.0,0.000197,2]
[363944837,1748943038381,-440.0,0.00019726,2]
[363944839,1748943038391,-2828.5,0.00019726,2]
[363944841,1748943038400,-561.37,0.00019726,2]
[363944843,1748943038410,-489.13,0.00019726,2]
[363944845,1748943038419,-849.11,0.00019726,2]
[363944847,1748943038428,-634.83,0.00019726,2]
[363944849,1748943038439,-488.19,0.00019726,2]
[363944851,1748943038449,-1027.29,0.00019726,2]
[363944853,1748943038459,-858.15,0.00019726,2]
[363944855,1748943038469,-921.1,0.00019726,2]
[363944857,1748943038478,-440.0,0.00019726,2]
[363944859,1748943038488,-440.0,0.00019726,2]
[363944861,1748943038498,-440.0,0.00019726,2]
[363944863,1748943038507,-695.19,0.00019726,2]
[363944865,1748943038517,-477.86,0.00019726,2]
[363944867,1748943038527,-440.0,0.00019726,2]
[363944869,1748943038537,-473.61,0.00019726,2]
[363944871,1748943038547,-493.19,0.00019726,2]
[363944873,1748943038556,-440.0,0.00019726,2]
[363944874,1748943038566,-217.15233878,0.00019728,2]
[363944877,1748943038576,-492.94,0.00019768,2]
[363944879,1748943038586,-225.18697532,0.00019783,2]
[363944881,1748943038595,-545.54701111,0.00019797,2]
[363944883,1748943038604,-151.0,0.000198,2]
[363944885,1748943038614,-32352.81930117,0.000198,2]
[363944887,1748943038624,-84011.96767335,0.000198,2]
[363944889,1748943038633,-1565.76036882,0.00019831,2]
[363944890,1748943038642,-233.51889341,0.00019838,2]
[363944893,1748943038652,-800.0,0.00019844,2]
[363944894,1748943038662,-962.0,0.00019845,2]
[363944897,1748943038676,-800.0,0.0001987,2]
[363944898,1748943038687,-242.15909246,0.00019893,2]
[363944900,1748943038698,-200.0,0.000199,2]
[363944902,1748943038708,-2068.31309627,0.000199,2]
[363944903,1748943038718,-800.0,0.00019948,2]
[363944904,1748943038728,-251.11897888,0.00019948,2]
[363944905,1748943038739,-3000.0,0.0001995,2]
[363944906,1748943038750,-3000.0,0.0001995,2]
[363944907,1748943038760,-2026.18,0.0001995,2]
[363944908,1748943038770,-800.0,0.00019959,2]
[363944909,1748943038779,-14857.81764852,0.0001999,2]
[363944910,1748943038789,-21311.18334512,0.0002,2]
[363944911,1748943038798,-8084.57651148,0.0002,3]
[363944912,1748943038808,-4979.01823909,0.0002,2]
[363944913,1748943038817,-460.28,0.0002,7]
[363944914,1748943038826,-941847.05332687,0.0002,30]
[363944915,1748943038836,-38049.81747981,0.0002,2]
[363944916,1748943038846,-10963.90069888,0.0002,2]
[363944917,1748943038855,-14566.63635667,0.0002,20]
[363944918,1748943038865,-151.0,0.0002,2]
[363944927,1748943038983,-151.0,0.0002,2]
[363944929,1748943038994,-151.0,0.0002,2]
[363944931,1748943039005,-151.0,0.0002,2]
[363944933,1748943039015,-151.0,0.0002,2]
[363944935,1748943039026,-194.475236,0.0002,2]
[363944937,1748943039035,-194.475236,0.0002,2]
[363944939,1748943039045,-151.0,0.0002,2]
[363944941,1748943039054,-151.0,0.0002,2]
[363944943,1748943039063,-151.0,0.0002,2]
[363944945,1748943039072,-151.0,0.0002,2]
[363944947,1748943039082,-151.0,0.0002,2]
[363944949,1748943039091,-151.0,0.0002,2]
[363944951,1748943039101,-151.0,0.0002,2]
[363944953,1748943039110,-151.0,0.0002,2]
[363944955,1748943039124,-151.0,0.0002,2]
[363944956,1748943039136,-367.38058,0.0002,2]
[363944958,1748943039146,-367.38058,0.0002,2]
[363944960,1748943039155,-528.291518,0.0002,2]
[363944962,1748943039165,-528.291518,0.0002,2]
[363944964,1748943039179,-300.0,0.0002,2]
[363944967,1748943039196,-1000.0,0.0002,2]
[363944969,1748943039206,-440.0,0.0002,2]
[363944970,1748943039215,-2828.5,0.0002,2]
[363944972,1748943039224,-561.37,0.0002,2]
[363944974,1748943039233,-489.13,0.0002,2]
[363944976,1748943039242,-849.11,0.0002,2]
[363944978,1748943039251,-634.83,0.0002,2]
[363944980,1748943039259,-488.19,0.0002,2]
[363944982,1748943039268,-1027.29,0.0002,2]
[363944984,1748943039277,-858.15,0.0002,2]
[363944987,1748943039291,-921.1,0.0002,2]
[363944989,1748943039301,-440.0,0.0002,2]
[363944991,1748943039310,-250.94138988,0.0002,2]
[363944993,1748943039320,-467.32,0.0002,2]
[363944995,1748943039330,-440.0,0.0002,2]
[363944997,1748943039339,-695.19,0.0002,2]
[363944999,1748943039349,-477.86,0.0002,2]
[363945001,1748943039358,-440.0,0.0002,2]
[363945003,1748943039368,-473.61,0.0002,2]
[363945005,1748943039378,-493.19,0.0002,2]
[363945007,1748943039387,-440.0,0.0002,2]
[363945009,1748943039397,-153.0,0.0002,2]
[363945011,1748943039407,-260.4103811,0.00020003,2]
[363945012,1748943039418,-154.88,0.00020009,2]
[363945014,1748943039428,-270.0455652,0.00020058,2]
[363945016,1748943039438,-1565.76036882,0.00020072,2]
[363945018,1748943039448,-20000.0,0.000201,2]
[363945020,1748943039458,-280.03725112,0.00020113,2]
[363945022,1748943039468,-215.0738,0.0002013,2]
[363945024,1748943039477,-404.46009328,0.00020168,2]
[363945026,1748943039488,-440.0,0.00020273,2]
[363945028,1748943039498,-2828.5,0.00020273,2]
[363945030,1748943039507,-561.37,0.00020273,2]
[363945032,1748943039517,-489.13,0.00020273,2]
[363945034,1748943039526,-849.11,0.00020273,2]
[363945036,1748943039536,-634.83,0.00020273,2]
[363945038,1748943039546,-488.19,0.00020273,2]
[363945040,1748943039556,-1027.29,0.00020273,2]
[363945042,1748943039566,-858.15,0.00020273,2]
[363945045,1748943039576,-921.1,0.00020273,2]
[363945046,1748943039586,-440.0,0.00020273,2]
[363945049,1748943039596,-440.0,0.00020273,2]
[363945050,1748943039606,-695.19,0.00020273,2]
[363945052,1748943039615,-477.86,0.00020273,2]
[363945055,1748943039625,-440.0,0.00020273,2]
[363945056,1748943039636,-473.61,0.00020273,2]
[363945058,1748943039646,-493.19,0.00020273,2]
[363945060,1748943039655,-440.0,0.00020273,2]
[363945062,1748943039666,-1565.76036882,0.00020314,3]
[363945064,1748943039680,-276.99548171,0.0002045,30]
[363945066,1748943039688,-500.0,0.000205,2]
[363945068,1748943039697,-153.0,0.00020521,2]
[363945070,1748943039708,-153.0,0.00020521,2]
[363945072,1748943039718,-717.96,0.00020547,2]
[363945074,1748943039726,-440.0,0.00020547,2]
[363945076,1748943039735,-2828.5,0.00020547,2]
[363945078,1748943039744,-561.37,0.00020547,2]
[363945080,1748943039755,-489.13,0.00020547,2]
[363945082,1748943039765,-849.11,0.00020547,2]
[363945084,1748943039776,-634.83,0.00020547,2]
[363945086,1748943039785,-488.19,0.00020547,2]
[363945088,1748943039794,-1027.29,0.00020547,2]
[363945090,1748943039804,-858.15,0.00020547,2]
[363945092,1748943039814,-921.1,0.00020547,2]
[363945094,1748943039823,-440.0,0.00020547,2]
[363945096,1748943039832,-440.0,0.00020547,2]
[363945098,1748943039842,-695.19,0.00020547,2]
[363945100,1748943039853,-477.86,0.00020547,2]
[363945102,1748943039862,-440.0,0.00020547,2]
[363945104,1748943039871,-473.61,0.00020547,2]
[363945106,1748943039879,-493.19,0.00020547,2]
[363945108,1748943039889,-440.0,0.00020547,2]
[363945110,1748943039899,-1565.76036882,0.00020555,3]
[363945112,1748943039909,-12670.76136593,0.0002056,3]
[363945114,1748943039919,-3592.62,0.000206,2]
[363945116,1748943039928,-1565.76036882,0.00020797,4]
[363945118,1748943039938,-440.0,0.00020821,2]
[363945120,1748943039947,-2828.5,0.00020821,2]
[363945122,1748943039957,-561.37,0.00020821,2]
[363945124,1748943039967,-489.13,0.00020821,2]
[363945126,1748943039976,-849.11,0.00020821,2]
[363945128,1748943039986,-634.83,0.00020821,2]
[363945130,1748943039996,-488.19,0.00020821,2]
[363945132,1748943040007,-1027.29,0.00020821,2]
[363945134,1748943040018,-858.15,0.00020821,2]
[363945136,1748943040029,-921.1,0.00020821,2]
[363945138,1748943040038,-465.88641844,0.00020821,2]
[363945140,1748943040048,-574.03100329,0.00020821,2]
[363945142,1748943040058,-695.19,0.00020821,2]
[363945144,1748943040067,-477.86,0.00020821,2]
[363945146,1748943040076,-440.0,0.00020821,2]
[363945148,1748943040086,-473.61,0.00020821,2]
[363945150,1748943040096,-493.19,0.00020821,2]
[363945152,1748943040105,-440.0,0.00020821,2]
[363945154,1748943040115,-2000.0,0.00020898,2]
[363945156,1748943040125,-159.179162,0.00020925,2]
[363945158,1748943040134,-1700.83630908,0.00021,2]
[363945160,1748943040144,-194.475236,0.00021,2]
[363945162,1748943040153,-194.475236,0.00021,2]
[363945164,1748943040163,-151.0,0.00021,2]
[363945166,1748943040172,-1565.76036882,0.00021038,4]
[363945168,1748943040181,-157.945674,0.0002108,2]
[363945170,1748943040190,-151.0,0.0002108,2]
[363945172,1748943040200,-151.0,0.0002108,2]
[363945174,1748943040209,-367.38058,0.0002108,2]
[363945176,1748943040219,-367.38058,0.0002108,2]
[363945178,1748943040229,-528.291518,0.0002108,2]
[363945180,1748943040238,-528.291518,0.0002108,2]
[363945181,1748943040247,-4000.0,0.0002108,2]
[363945184,1748943040257,-349.39779369,0.00021095,3]
[363945186,1748943040267,-151.0,0.00021095,2]
[363945188,1748943040277,-151.0,0.00021095,2]
[363945190,1748943040286,-151.0,0.00021095,2]
[363945192,1748943040296,-151.0,0.00021095,2]
[363945194,1748943040305,-281.59493,0.00021095,2]
[363945196,1748943040315,-151.0,0.00021095,2]
[363945198,1748943040325,-574.694025,0.00021095,2]
[363945200,1748943040335,-151.0,0.00021095,2]
[363945202,1748943040345,-151.0,0.00021095,2]
[363945204,1748943040355,-717.96,0.00021095,3]
[363945206,1748943040364,-376.219632,0.00021095,2]
[363945208,1748943040373,-2828.5,0.00021095,2]
[363945210,1748943040383,-561.37,0.00021095,2]
[363945212,1748943040393,-489.13,0.00021095,2]
[363945214,1748943040402,-849.11,0.00021095,2]
[363945216,1748943040412,-634.83,0.00021095,2]
[363945218,1748943040421,-488.19,0.00021095,2]
[363945219,1748943040431,-1027.29,0.00021095,2]
[363945221,1748943040441,-858.15,0.00021095,2]
[363945224,1748943040451,-921.1,0.00021095,2]
[363945226,1748943040460,-695.19,0.00021095,2]
[363945228,1748943040470,-477.86,0.00021095,2]
[363945230,1748943040480,-440.0,0.00021095,2]
[363945232,1748943040489,-395.810148,0.00021095,2]
[363945233,1748943040499,-473.61,0.00021095,2]
[363945235,1748943040508,-395.810148,0.00021095,2]
[363945238,1748943040518,-493.19,0.00021095,2]
[363945239,1748943040528,-371.09,0.00021095,2]
[363945241,1748943040537,-4000.0,0.00021136,2]
[363945244,1748943040547,-151.0,0.00021136,2]
[363945246,1748943040556,-151.0,0.00021136,2]
[363945248,1748943040566,-552.03,0.000212,14]
[363945250,1748943040576,-2000.0,0.0002121,2]
[363945252,1748943040585,-151.0,0.0002121,2]
[363945253,1748943040595,-215.546178,0.0002121,2]
[363945255,1748943040604,-215.546178,0.0002121,2]
[363945257,1748943040613,-625.5470432,0.00021233,2]
[363945260,1748943040623,-3753.85,0.00021242,2]
[363945262,1748943040633,-200.8465109,0.00021243,2]
[363945264,1748943040643,-500.0,0.00021243,2]
[363945266,1748943040652,-513.98861648,0.00021243,2]
[363945268,1748943040661,-267.00703625,0.00021243,2]